[Event "44th Chess Olympiad Women 2022"]
[Site "Chennai"]
[Date "2022.07.31"]
[Round "3.2"]
[White "Buksa, Nataliya"]
[Black "Hagarova, Zuzana"]
[Result "1-0"]
[WhiteElo "2401"]
[BlackElo "2293"]
[Annotator "RC"]
[PlyCount "69"]
[EventDate "2022.??.??"]
[TimeControl "60"]

1. e4 {[%emt 0:00:03]} e6 {[%emt 0:00:11]} 2. d4 {[%emt 0:00:03]} d5 {[%emt 0:
00:00]} 3. Nc3 {[%emt 0:00:04]} Nf6 {[%emt 0:00:20]} 4. e5 {[%emt 0:00:04]}
Nfd7 {[%emt 0:00:12]} 5. f4 {[%emt 0:00:04]} c5 {[%emt 0:00:23]} 6. Nf3 {
[%emt 0:00:05]} Nc6 {[%emt 0:00:35]} 7. Be3 {[%emt 0:00:07]} Be7 {[%emt 0:00:
00]} 8. Qd2 {[%emt 0:02:55]} O-O {[%emt 0:04:07]} 9. dxc5 {[%emt 0:02:21]} Nxc5
{[%emt 0:02:23]} 10. O-O-O {[%emt 0:03:02]} a6 {[%emt 0:18:55]} 11. Bd3 {
[%emt 0:01:30]} Nxd3+ {[%emt 0:23:52]} 12. Qxd3 {[%emt 0:00:09]} Qa5 {[%emt 0:
00:00]} 13. Kb1 {[%emt 0:01:09]} Bd7 {[%emt 0:13:48]} 14. Nd4 {[%emt 0:17:12]}
Rfc8 {[%emt 0:08:57]} 15. Nb3 {[%emt 0:05:12]} Qc7 {[%emt 0:03:46]} 16. h4 {
[%emt 0:02:07]} Be8 {[%emt 0:01:25]} 17. g4 {[%emt 0:11:35]} b5 {[%emt 0:03:54]
} 18. h5 {[%emt 0:04:49]} Nb4 {[%emt 0:00:59]} 19. Qd2 {[%emt 0:03:02]} Nxc2 {
[%emt 0:00:55]} 20. Qxc2 {[%emt 0:00:47]} b4 {[%emt 0:00:22]} 21. Bd4 {[%emt 0:
00:00]} bxc3 {[%emt 0:01:52]} 22. Qxc3 {[%emt 0:00:24]} Qb7 {[%emt 0:04:03]}
23. Qe3 {[%emt 0:01:45]} a5 {[%emt 0:03:25]} 24. f5 {[%emt 0:04:09]} a4 {
[%emt 0:00:47]} 25. Nc5 {[%emt 0:00:27]} Qb5 {[%emt 0:01:27]} 26. Rc1 {[%emt 0:
00:00]} Ra5 {[%emt 0:01:44]} 27. f6 {[%emt 0:06:41]} Bf8 {[%emt 0:00:25]} 28.
Rc2 {[%emt 0:00:13]} Rxc5 {[%emt 0:00:28]} 29. Bxc5 {[%emt 0:04:45]} Bxc5 {
[%emt 0:00:08]} 30. Qg5 {[%emt 0:00:11]} Bf8 {[%emt 0:01:00]} 31. fxg7 {
[%emt 0:00:03]} Bc5 {[%emt 0:00:37]} 32. Qd8 {[%emt 0:01:08]} Bb6 {[%emt 0:00:
00]} 33. Qe7 {[%emt 0:00:24]} Kxg7 {[%emt 0:00:19]} 34. h6+ {[%emt 0:00:58]}
Kg8 {[%emt 0:00:14]} 35. Rc8 {[%emt 0:00:05]} 1-0

[Event "44th Chess Olympiad Women 2022"]
[Site "Chennai"]
[Date "2022.07.31"]
[Round "3.2"]
[White "Muzychuk, Mariya"]
[Black "Borosova, Zuzana"]
[Result "1-0"]
[WhiteElo "2540"]
[BlackElo "2277"]
[Annotator "RC"]
[PlyCount "144"]
[EventDate "2022.??.??"]
[TimeControl "60"]

1. e4 {[%emt 0:00:03]} e5 {[%emt 0:00:04]} 2. Nf3 {[%emt 0:00:04]} Nc6 {
[%emt 0:00:03]} 3. Bb5 {[%emt 0:00:47]} a6 {[%emt 0:00:32]} 4. Ba4 {[%emt 0:00:
00]} Nf6 {[%emt 0:00:38]} 5. O-O {[%emt 0:00:27]} Be7 {[%emt 0:00:34]} 6. Re1 {
[%emt 0:00:52]} b5 {[%emt 0:00:53]} 7. Bb3 {[%emt 0:00:05]} d6 {[%emt 0:00:51]}
8. c3 {[%emt 0:00:33]} O-O {[%emt 0:00:17]} 9. h3 {[%emt 0:00:20]} Nb8 {
[%emt 0:03:48]} 10. d4 {[%emt 0:02:12]} Nbd7 {[%emt 0:00:06]} 11. Nbd2 {
[%emt 0:00:50]} Bb7 {[%emt 0:00:19]} 12. Bc2 {[%emt 0:01:19]} Re8 {[%emt 0:00:
00]} 13. Nf1 {[%emt 0:00:45]} Bf8 {[%emt 0:01:02]} 14. Ng3 {[%emt 0:00:24]} g6
{[%emt 0:02:44]} 15. Bg5 {[%emt 0:03:31]} h6 {[%emt 0:07:54]} 16. Bd2 {[%emt 0:
00:00]} Bg7 {[%emt 0:02:15]} 17. a4 {[%emt 0:00:46]} c5 {[%emt 0:05:55]} 18. d5
{[%emt 0:00:29]} c4 {[%emt 0:00:25]} 19. b4 {[%emt 0:01:09]} cxb3 {[%emt 0:00:
00]} 20. Bxb3 {[%emt 0:00:11]} bxa4 {[%emt 0:02:45]} 21. Bxa4 {[%emt 0:01:19]}
Re7 {[%emt 0:03:03]} 22. c4 {[%emt 0:12:35]} Nc5 {[%emt 0:01:21]} 23. Bb4 {
[%emt 0:06:50]} Rc8 {[%emt 0:01:43]} 24. Bc2 {[%emt 0:04:10]} Nfd7 {[%emt 0:00:
00]} 25. Qe2 {[%emt 0:01:58]} Qf8 {[%emt 0:03:12]} 26. Nd2 {[%emt 0:01:39]} h5
{[%emt 0:05:48]} 27. Ra3 {[%emt 0:03:08]} Bh6 {[%emt 0:01:43]} 28. Rb1 {
[%emt 0:02:41]} f6 {[%emt 0:08:47]} 29. Nb3 {[%emt 0:06:07]} Qf7 {[%emt 0:00:
00]} 30. Nf1 {[%emt 0:01:25]} Kh7 {[%emt 0:05:09]} 31. Nfd2 {[%emt 0:00:46]}
Bxd2 {[%emt 0:02:35]} 32. Bxd2 {[%emt 0:01:39]} Nxb3 {[%emt 0:01:36]} 33. Raxb3
{[%emt 0:01:07]} Ba8 {[%emt 0:00:01]} 34. Bb4 {[%emt 0:04:43]} Nc5 {[%emt 0:00:
00]} 35. Bxc5 {[%emt 0:00:21]} Rxc5 {[%emt 0:01:42]} 36. Rb6 {[%emt 0:00:38]}
Rd7 {[%emt 0:00:23]} 37. Rxa6 {[%emt 0:10:17]} Bb7 {[%emt 0:00:08]} 38. Rab6 {
[%emt 0:00:17]} Qe7 {[%emt 0:00:39]} 39. Bd3 {[%emt 0:04:17]} Rdc7 {[%emt 0:00:
00]} 40. Ra1 {[%emt 0:01:38]} Bc8 {[%emt 0:01:01]} 41. Ra8 {[%emt 0:32:00]} Kg7
{[%emt 0:06:49]} 42. Qb2 {[%emt 0:00:00]} Kh6 {[%emt 0:15:11]} 43. Qd2+ {
[%emt 0:00:13]} Kg7 {[%emt 0:01:23]} 44. Rbb8 {[%emt 0:00:26]} Qd7 {[%emt 0:00:
00]} 45. Qb2 {[%emt 0:05:32]} Qe7 {[%emt 0:03:39]} 46. Rb5 {[%emt 0:01:06]} Kh6
{[%emt 0:00:38]} 47. Rxc5 {[%emt 0:02:17]} Rxc5 {[%emt 0:00:14]} 48. Qb6 {
[%emt 0:00:50]} Qc7 {[%emt 0:02:23]} 49. Rb8 {[%emt 0:02:12]} Ba6 {[%emt 0:00:
00]} 50. Qxc7 {[%emt 0:06:22]} Rxc7 {[%emt 0:00:01]} 51. Rb4 {[%emt 0:00:21]}
h4 {[%emt 0:01:04]} 52. g3 {[%emt 0:03:11]} Kg5 {[%emt 0:00:38]} 53. Kg2 {
[%emt 0:00:31]} Rc5 {[%emt 0:01:31]} 54. Kf3 {[%emt 0:02:21]} Ra5 {[%emt 0:00:
00]} 55. gxh4+ {[%emt 0:03:40]} Kxh4 {[%emt 0:00:10]} 56. Rb6 {[%emt 0:01:01]}
Ra3 {[%emt 0:00:24]} 57. Ke2 {[%emt 0:00:06]} f5 {[%emt 0:00:45]} 58. Rxd6 {
[%emt 0:01:07]} fxe4 {[%emt 0:00:20]} 59. Bxe4 {[%emt 0:00:09]} Bxc4+ {[%emt 0:
00:00]} 60. Kd2 {[%emt 0:00:11]} Ra2+ {[%emt 0:01:16]} 61. Kc3 {[%emt 0:00:53]}
Bxd5 {[%emt 0:00:37]} 62. Bxd5 {[%emt 0:00:45]} Rxf2 {[%emt 0:00:23]} 63. Be6 {
[%emt 0:00:22]} Rf6 {[%emt 0:00:30]} 64. Kd3 {[%emt 0:00:30]} Rf4 {[%emt 0:00:
00]} 65. Ke3 {[%emt 0:01:04]} g5 {[%emt 0:00:34]} 66. Bg4 {[%emt 0:01:04]} Kg3
{[%emt 0:00:15]} 67. Rg6 {[%emt 0:00:58]} Kh4 {[%emt 0:00:08]} 68. Re6 {
[%emt 0:00:50]} e4 {[%emt 0:01:05]} 69. Rh6+ {[%emt 0:00:22]} Kg3 {[%emt 0:00:
00]} 70. Rh5 {[%emt 0:00:08]} Rf8 {[%emt 0:00:55]} 71. Kxe4 {[%emt 0:00:17]}
Ra8 {[%emt 0:00:40]} 72. Rxg5 {[%emt 0:00:15]} Ra4+ {[%emt 0:00:30]} 1-0

[Event "44th Chess Olympiad Women 2022"]
[Site "Chennai"]
[Date "2022.07.31"]
[Round "3.2"]
[White "Repkova, Eva"]
[Black "Muzychuk, Anna"]
[Result "0-1"]
[WhiteElo "2303"]
[BlackElo "2529"]
[Annotator "RC"]
[PlyCount "76"]
[EventDate "2022.??.??"]
[TimeControl "60"]

1. e4 {[%emt 0:00:11]} c5 {[%emt 0:00:10]} 2. Nf3 {[%emt 0:00:12]} Nc6 {
[%emt 0:00:05]} 3. Bb5 {[%emt 0:00:29]} g6 {[%emt 0:00:13]} 4. O-O {[%emt 0:00:
00]} Bg7 {[%emt 0:00:07]} 5. Re1 {[%emt 0:01:24]} e5 {[%emt 0:00:19]} 6. c3 {
[%emt 0:01:27]} Nge7 {[%emt 0:00:36]} 7. d3 {[%emt 0:00:28]} O-O {[%emt 0:00:
00]} 8. Be3 {[%emt 0:00:21]} d6 {[%emt 0:01:43]} 9. h3 {[%emt 0:00:07]} h6 {
[%emt 0:05:04]} 10. Qd2 {[%emt 0:23:55]} Kh7 {[%emt 0:01:35]} 11. d4 {[%emt 0:
00:00]} exd4 {[%emt 0:08:21]} 12. cxd4 {[%emt 0:00:08]} Qb6 {[%emt 0:00:21]}
13. Na3 {[%emt 0:01:48]} cxd4 {[%emt 0:14:17]} 14. Bf4 {[%emt 0:02:54]} Be6 {
[%emt 0:07:07]} 15. Bxd6 {[%emt 0:05:41]} Rfd8 {[%emt 0:01:16]} 16. Qf4 {
[%emt 0:06:16]} Rac8 {[%emt 0:03:55]} 17. Rac1 {[%emt 0:12:12]} d3 {[%emt 0:00:
00]} 18. b4 {[%emt 0:22:53]} g5 {[%emt 0:05:38]} 19. Qg3 {[%emt 0:00:54]} Rxd6
{[%emt 0:02:52]} 20. Qxd6 {[%emt 0:00:19]} Rd8 {[%emt 0:00:16]} 21. Qc5 {
[%emt 0:03:28]} d2 {[%emt 0:01:46]} 22. Nxd2 {[%emt 0:00:10]} Rxd2 {[%emt 0:00:
00]} 23. Qxb6 {[%emt 0:01:06]} axb6 {[%emt 0:00:02]} 24. Nc4 {[%emt 0:03:05]}
Rxa2 {[%emt 0:00:41]} 25. e5 {[%emt 0:00:22]} Nxb4 {[%emt 0:05:32]} 26. Nxb6 {
[%emt 0:00:57]} Nec6 {[%emt 0:00:40]} 27. Rc5 {[%emt 0:00:47]} Ra5 {[%emt 0:00:
00]} 28. Rd1 {[%emt 0:04:54]} Kg8 {[%emt 0:05:33]} 29. Nd7 {[%emt 0:01:06]}
Bxd7 {[%emt 0:01:21]} 30. Rxd7 {[%emt 0:00:05]} Bf8 {[%emt 0:00:40]} 31. Bxc6 {
[%emt 0:00:53]} Bxc5 {[%emt 0:00:38]} 32. Bxb7 {[%emt 0:00:13]} Ra1+ {[%emt 0:
00:00]} 33. Kh2 {[%emt 0:00:04]} Bxf2 {[%emt 0:00:14]} 34. Bf3 {[%emt 0:00:14]}
Ra7 {[%emt 0:01:19]} 35. Rd6 {[%emt 0:00:22]} Be3 {[%emt 0:00:19]} 36. g3 {
[%emt 0:00:48]} Ra2+ {[%emt 0:01:50]} 37. Kh1 {[%emt 0:00:04]} Rd2 {[%emt 0:00:
00]} 38. Rf6 {[%emt 0:00:25]} Nd3 {[%emt 0:00:18]} 0-1

[Event "44th Chess Olympiad Women 2022"]
[Site "Chennai"]
[Date "2022.07.31"]
[Round "3.2"]
[White "Sucikova, Svetlana"]
[Black "Osmak, Yuliia"]
[Result "0-1"]
[WhiteElo "2188"]
[BlackElo "2420"]
[Annotator "RC"]
[PlyCount "188"]
[EventDate "2022.??.??"]
[TimeControl "60"]

1. d4 {[%emt 0:01:08]} d5 {[%emt 0:00:13]} 2. Nf3 {[%emt 0:02:32]} Nf6 {
[%emt 0:00:12]} 3. g3 {[%emt 0:01:42]} Bf5 {[%emt 0:08:24]} 4. Bg2 {[%emt 0:00:
00]} c6 {[%emt 0:00:31]} 5. O-O {[%emt 0:01:45]} e6 {[%emt 0:02:52]} 6. c4 {
[%emt 0:10:51]} Be7 {[%emt 0:03:09]} 7. Qb3 {[%emt 0:07:13]} Qb6 {[%emt 0:00:
00]} 8. c5 {[%emt 0:14:32]} Qa6 {[%emt 0:06:15]} 9. Nc3 {[%emt 0:02:02]} b6 {
[%emt 0:04:51]} 10. cxb6 {[%emt 0:13:19]} axb6 {[%emt 0:00:40]} 11. Bf4 {
[%emt 0:00:20]} O-O {[%emt 0:05:34]} 12. Ne5 {[%emt 0:00:57]} c5 {[%emt 0:00:
00]} 13. e3 {[%emt 0:06:29]} h6 {[%emt 0:07:37]} 14. h4 {[%emt 0:01:58]} Bh7 {
[%emt 0:15:54]} 15. Rfc1 {[%emt 0:02:00]} Nfd7 {[%emt 0:04:06]} 16. Qb5 {
[%emt 0:08:36]} Nxe5 {[%emt 0:01:38]} 17. Bxe5 {[%emt 0:00:41]} Bd3 {[%emt 0:
00:00]} 18. Qxa6 {[%emt 0:04:23]} Nxa6 {[%emt 0:02:51]} 19. Rd1 {[%emt 0:01:36]
} Bh7 {[%emt 0:01:57]} 20. Nb5 {[%emt 0:05:39]} Rfd8 {[%emt 0:02:00]} 21. Nc7 {
[%emt 0:00:46]} Ra7 {[%emt 0:03:05]} 22. Nxa6 {[%emt 0:01:32]} Rxa6 {[%emt 0:
00:00]} 23. Bf1 {[%emt 0:01:12]} c4 {[%emt 0:00:53]} 24. h5 {[%emt 0:01:04]} b5
{[%emt 0:01:54]} 25. a3 {[%emt 0:01:01]} Rda8 {[%emt 0:01:13]} 26. Rac1 {
[%emt 0:00:08]} Ra4 {[%emt 0:01:44]} 27. f3 {[%emt 0:01:44]} b4 {[%emt 0:01:38]
} 28. axb4 {[%emt 0:00:04]} Rxb4 {[%emt 0:00:18]} 29. Ra1 {[%emt 0:00:13]} Rba4
{[%emt 0:00:36]} 30. Rxa4 {[%emt 0:00:31]} Rxa4 {[%emt 0:00:02]} 31. Rc1 {
[%emt 0:01:49]} f6 {[%emt 0:01:03]} 32. Bf4 {[%emt 0:00:09]} Ra2 {[%emt 0:00:
00]} 33. b3 {[%emt 0:01:42]} Ba3 {[%emt 0:00:21]} 34. Re1 {[%emt 0:02:53]} Bb4
{[%emt 0:00:54]} 35. Rc1 {[%emt 0:01:10]} Ba3 {[%emt 0:00:53]} 36. Re1 {
[%emt 0:00:01]} cxb3 {[%emt 0:00:18]} 37. e4 {[%emt 0:00:05]} b2 {[%emt 0:00:
00]} 38. Bd3 {[%emt 0:00:12]} Ra1 {[%emt 0:00:16]} 39. Rb1 {[%emt 0:00:38]} Kf8
{[%emt 0:00:58]} 40. Kf2 {[%emt 0:00:45]} dxe4 {[%emt 0:00:26]} 41. fxe4 {
[%emt 0:30:35]} Bg8 {[%emt 0:04:29]} 42. Bd2 {[%emt 0:00:00]} e5 {[%emt 0:00:
00]} 43. Bc3 {[%emt 0:00:00]} Bc4 {[%emt 0:07:56]} 44. Bc2 {[%emt 0:00:00]} Bb3
{[%emt 0:02:49]} 45. Bd3 {[%emt 0:00:00]} Rxb1 {[%emt 0:00:16]} 46. Bxb1 {
[%emt 0:00:00]} exd4 {[%emt 0:00:39]} 47. Bxd4 {[%emt 0:00:00]} Bd1 {[%emt 0:
00:00]} 48. Ke1 {[%emt 0:00:00]} Bxh5 {[%emt 0:00:12]} 49. Kd2 {[%emt 0:00:00]}
Bg4 {[%emt 0:03:21]} 50. e5 {[%emt 0:00:00]} f5 {[%emt 0:02:18]} 51. Kc3 {
[%emt 0:00:00]} g5 {[%emt 0:01:09]} 52. Kb3 {[%emt 0:00:00]} Be7 {[%emt 0:00:
00]} 53. Kxb2 {[%emt 0:00:00]} Bb4 {[%emt 0:00:15]} 54. Bf2 {[%emt 0:00:00]}
Ke7 {[%emt 0:00:29]} 55. Ba2 {[%emt 0:00:00]} Bd1 {[%emt 0:01:10]} 56. Bc4 {
[%emt 0:00:00]} Ba4 {[%emt 0:00:13]} 57. Bd5 {[%emt 0:00:00]} Kd7 {[%emt 0:00:
00]} 58. Bc4 {[%emt 0:00:00]} Ke8 {[%emt 0:00:49]} 59. Be6 {[%emt 0:00:00]} Bd7
{[%emt 0:00:05]} 60. Bd5 {[%emt 0:00:00]} Bb5 {[%emt 0:00:54]} 61. Kb3 {
[%emt 0:00:00]} Bd2 {[%emt 0:00:07]} 62. Kc2 {[%emt 0:00:16]} Ba5 {[%emt 0:00:
00]} 63. Be6 {[%emt 0:00:29]} Bd7 {[%emt 0:00:15]} 64. Bd5 {[%emt 0:00:48]} Bb4
{[%emt 0:01:27]} 65. Kd3 {[%emt 0:00:23]} Bb5+ {[%emt 0:00:30]} 66. Kd4 {
[%emt 0:03:10]} Ke7 {[%emt 0:00:07]} 67. Bg8 {[%emt 0:02:48]} Ba3 {[%emt 0:00:
00]} 68. Kc3 {[%emt 0:00:10]} Ba4 {[%emt 0:00:18]} 69. Bd5 {[%emt 0:00:21]} Kd7
{[%emt 0:00:29]} 70. Bg8 {[%emt 0:00:40]} Bd1 {[%emt 0:00:44]} 71. Bd5 {
[%emt 0:00:20]} Be7 {[%emt 0:00:32]} 72. Bb6 {[%emt 0:01:23]} Ba4 {[%emt 0:00:
00]} 73. Kd4 {[%emt 0:00:55]} Ba3 {[%emt 0:00:41]} 74. Kc3 {[%emt 0:01:03]} Bc6
{[%emt 0:00:31]} 75. Bc4 {[%emt 0:01:12]} Ke8 {[%emt 0:00:32]} 76. Kb3 {
[%emt 0:00:26]} Bc1 {[%emt 0:00:20]} 77. Kc2 {[%emt 0:00:11]} Ba3 {[%emt 0:00:
00]} 78. Kb3 {[%emt 0:00:08]} Be7 {[%emt 0:00:20]} 79. Kc3 {[%emt 0:00:15]} Bd8
{[%emt 0:01:02]} 80. Bf2 {[%emt 0:00:54]} Bc7 {[%emt 0:00:07]} 81. e6 {[%emt 0:
00:00]} Ke7 {[%emt 0:00:13]} 82. Bc5+ {[%emt 0:02:04]} Kf6 {[%emt 0:00:38]} 83.
Bd4+ {[%emt 0:00:57]} Kg6 {[%emt 0:00:34]} 84. Bf2 {[%emt 0:00:59]} Bd6 {
[%emt 0:00:42]} 85. Kd4 {[%emt 0:00:17]} Kf6 {[%emt 0:00:04]} 86. Kd3 {[%emt 0:
00:00]} Bb7 {[%emt 0:00:33]} 87. Bd4+ {[%emt 0:00:12]} Ke7 {[%emt 0:00:23]} 88.
Bf2 {[%emt 0:00:24]} Bc8 {[%emt 0:00:08]} 89. Bd4 {[%emt 0:01:47]} Bxg3 {
[%emt 0:00:33]} 90. Bg7 {[%emt 0:00:10]} h5 {[%emt 0:00:35]} 91. Kd4 {[%emt 0:
00:00]} Bxe6 {[%emt 0:00:10]} 92. Bh6 {[%emt 0:00:55]} Bf4 {[%emt 0:00:43]} 93.
Bf8+ {[%emt 0:00:53]} Kf7 {[%emt 0:00:07]} 94. Bxe6+ {[%emt 0:00:32]} Kxe6 {
[%emt 0:00:03]} 0-1

[Event "44th Chess Olympiad Women 2022"]
[Site "Chennai"]
[Date "2022.07.31"]
[Round "3.3"]
[White "Arabidze, Meri"]
[Black "Koubova, Anna Marie"]
[Result "1/2-1/2"]
[WhiteElo "2426"]
[BlackElo "2115"]
[Annotator "RC"]
[PlyCount "118"]
[EventDate "2022.??.??"]
[TimeControl "60"]

1. d4 {[%emt 0:00:04]} Nf6 {[%emt 0:00:16]} 2. c4 {[%emt 0:00:07]} e6 {[%emt 0:
00:00]} 3. Nc3 {[%emt 0:00:23]} Bb4 {[%emt 0:01:26]} 4. e3 {[%emt 0:00:25]} O-O
{[%emt 0:08:15]} 5. Bd3 {[%emt 0:00:22]} d5 {[%emt 0:04:11]} 6. a3 {[%emt 0:00:
00]} Bxc3+ {[%emt 0:04:25]} 7. bxc3 {[%emt 0:00:02]} b6 {[%emt 0:00:34]} 8.
cxd5 {[%emt 0:02:39]} exd5 {[%emt 0:01:01]} 9. Ne2 {[%emt 0:01:30]} c5 {
[%emt 0:02:21]} 10. O-O {[%emt 0:02:11]} Ba6 {[%emt 0:04:23]} 11. f3 {[%emt 0:
00:00]} Re8 {[%emt 0:08:48]} 12. Ng3 {[%emt 0:03:27]} Qd7 {[%emt 0:14:17]} 13.
Ra2 {[%emt 0:12:14]} Bxd3 {[%emt 0:04:07]} 14. Qxd3 {[%emt 0:00:02]} Nc6 {
[%emt 0:00:22]} 15. Re2 {[%emt 0:03:01]} h5 {[%emt 0:07:29]} 16. Bb2 {[%emt 0:
00:00]} Rad8 {[%emt 0:01:15]} 17. Ree1 {[%emt 0:11:10]} Re6 {[%emt 0:07:56]}
18. Ne2 {[%emt 0:10:48]} Rde8 {[%emt 0:01:43]} 19. Nf4 {[%emt 0:02:48]} R6e7 {
[%emt 0:01:05]} 20. Nh3 {[%emt 0:04:30]} Na5 {[%emt 0:03:38]} 21. Ng5 {[%emt 0:
00:00]} Nc4 {[%emt 0:05:34]} 22. Bc1 {[%emt 0:00:46]} Nd6 {[%emt 0:02:00]} 23.
Rd1 {[%emt 0:06:21]} Qb5 {[%emt 0:01:42]} 24. Qc2 {[%emt 0:03:44]} Nc4 {
[%emt 0:01:28]} 25. e4 {[%emt 0:07:22]} dxe4 {[%emt 0:01:52]} 26. a4 {[%emt 0:
00:00]} Qc6 {[%emt 0:01:16]} 27. fxe4 {[%emt 0:01:00]} Nxe4 {[%emt 0:00:45]}
28. d5 {[%emt 0:01:17]} Qg6 {[%emt 0:00:40]} 29. Nxe4 {[%emt 0:01:04]} Rxe4 {
[%emt 0:00:42]} 30. Qd3 {[%emt 0:01:12]} Ne3 {[%emt 0:10:06]} 31. Bxe3 {
[%emt 0:00:54]} Rxe3 {[%emt 0:00:04]} 32. Qxg6 {[%emt 0:03:16]} fxg6 {[%emt 0:
00:00]} 33. c4 {[%emt 0:00:04]} R3e4 {[%emt 0:00:52]} 34. Rc1 {[%emt 0:00:48]}
Rd4 {[%emt 0:01:45]} 35. Rc2 {[%emt 0:00:54]} Ree4 {[%emt 0:00:26]} 36. Rfc1 {
[%emt 0:00:23]} Kf7 {[%emt 0:00:27]} 37. a5 {[%emt 0:01:26]} bxa5 {[%emt 0:00:
00]} 38. Ra1 {[%emt 0:00:17]} Rxc4 {[%emt 0:00:51]} 39. Rxc4 {[%emt 0:00:44]}
Rxc4 {[%emt 0:00:05]} 40. Rxa5 {[%emt 0:00:03]} Ke7 {[%emt 0:00:59]} 41. Ra6 {
[%emt 0:10:37]} Rd4 {[%emt 0:19:01]} 42. Rxg6 {[%emt 0:03:14]} a5 {[%emt 0:00:
00]} 43. Ra6 {[%emt 0:01:43]} Rxd5 {[%emt 0:06:13]} 44. Rxa5 {[%emt 0:00:31]}
Rf5 {[%emt 0:01:49]} 45. Ra7+ {[%emt 0:01:13]} Kf6 {[%emt 0:00:34]} 46. h4 {
[%emt 0:02:17]} g5 {[%emt 0:01:29]} 47. g4 {[%emt 0:03:32]} hxg4 {[%emt 0:00:
00]} 48. h5 {[%emt 0:00:04]} Ke5 {[%emt 0:00:41]} 49. h6 {[%emt 0:01:51]} Kd4 {
[%emt 0:01:15]} 50. h7 {[%emt 0:01:57]} Rf8 {[%emt 0:00:05]} 51. Kg2 {[%emt 0:
00:00]} c4 {[%emt 0:00:37]} 52. Rd7+ {[%emt 0:00:46]} Ke3 {[%emt 0:00:30]} 53.
Kg3 {[%emt 0:02:11]} c3 {[%emt 0:00:37]} 54. Rc7 {[%emt 0:01:09]} Kd2 {[%emt 0:
00:00]} 55. Kxg4 {[%emt 0:00:16]} c2 {[%emt 0:00:44]} 56. Kxg5 {[%emt 0:00:16]}
c1=Q {[%emt 0:00:23]} 57. Rxc1 {[%emt 0:00:03]} Kxc1 {[%emt 0:00:10]} 58. Kg6 {
[%emt 0:00:02]} Ra8 {[%emt 0:00:21]} 59. Kg7 {[%emt 0:00:04]} Kd2 {[%emt 0:00:
00]} 1/2-1/2

[Event "44th Chess Olympiad Women 2022"]
[Site "Chennai"]
[Date "2022.07.31"]
[Round "3.3"]
[White "Batsiashvili, Nino"]
[Black "Worek, Joanna"]
[Result "1-0"]
[WhiteElo "2466"]
[BlackElo "2280"]
[Annotator "RC"]
[PlyCount "63"]
[EventDate "2022.??.??"]
[TimeControl "60"]

1. d4 {[%emt 0:00:03]} g6 {[%emt 0:00:04]} 2. e4 {[%emt 0:03:40]} Nf6 {[%emt 0:
00:00]} 3. e5 {[%emt 0:01:19]} Nh5 {[%emt 0:00:04]} 4. Be2 {[%emt 0:05:12]} d6
{[%emt 0:00:10]} 5. Nf3 {[%emt 0:04:56]} dxe5 {[%emt 0:01:47]} 6. Nxe5 {
[%emt 0:00:55]} Nf6 {[%emt 0:05:05]} 7. Bc4 {[%emt 0:02:18]} e6 {[%emt 0:01:01]
} 8. Nc3 {[%emt 0:05:56]} Bg7 {[%emt 0:03:55]} 9. Bg5 {[%emt 0:00:50]} h6 {
[%emt 0:01:01]} 10. Bh4 {[%emt 0:08:05]} Nc6 {[%emt 0:06:24]} 11. Nxc6 {
[%emt 0:20:30]} bxc6 {[%emt 0:00:06]} 12. O-O {[%emt 0:01:25]} O-O {[%emt 0:00:
00]} 13. Re1 {[%emt 0:00:28]} Qd6 {[%emt 0:10:21]} 14. Bg3 {[%emt 0:09:07]} Qb4
{[%emt 0:03:40]} 15. Qd3 {[%emt 0:00:48]} Nd5 {[%emt 0:01:23]} 16. a3 {[%emt 0:
00:00]} Qb6 {[%emt 0:01:06]} 17. Be5 {[%emt 0:02:16]} Rd8 {[%emt 0:07:19]} 18.
Na4 {[%emt 0:03:20]} Qb8 {[%emt 0:08:52]} 19. Bb3 {[%emt 0:04:04]} a5 {[%emt 0:
00:00]} 20. Nc5 {[%emt 0:01:04]} Ne7 {[%emt 0:06:52]} 21. Bxg7 {[%emt 0:02:16]}
Kxg7 {[%emt 0:00:02]} 22. Rad1 {[%emt 0:00:35]} Qb5 {[%emt 0:04:47]} 23. Qe4 {
[%emt 0:01:22]} a4 {[%emt 0:00:47]} 24. Qe5+ {[%emt 0:00:44]} Kf8 {[%emt 0:00:
00]} 25. Qxc7 {[%emt 0:01:18]} Re8 {[%emt 0:02:40]} 26. c4 {[%emt 0:00:47]} Qb8
{[%emt 0:00:31]} 27. Qxb8 {[%emt 0:00:07]} Rxb8 {[%emt 0:00:03]} 28. Bxa4 {
[%emt 0:00:06]} Rxb2 {[%emt 0:00:19]} 29. d5 {[%emt 0:00:24]} exd5 {[%emt 0:00:
00]} 30. cxd5 {[%emt 0:00:09]} Rd8 {[%emt 0:00:40]} 31. d6 {[%emt 0:03:41]} Nd5
{[%emt 0:01:07]} 32. d7 {[%emt 0:00:43]} 1-0

[Event "44th Chess Olympiad Women 2022"]
[Site "Chennai"]
[Date "2022.07.31"]
[Round "3.3"]
[White "Movsesian, Julia"]
[Black "Dzagnidze, Nana"]
[Result "1/2-1/2"]
[WhiteElo "2291"]
[BlackElo "2531"]
[Annotator "RC"]
[PlyCount "52"]
[EventDate "2022.??.??"]
[TimeControl "60"]

1. e4 {[%emt 0:00:05]} c5 {[%emt 0:00:05]} 2. Nc3 {[%emt 0:00:22]} Nc6 {
[%emt 0:02:15]} 3. Bb5 {[%emt 0:00:35]} g6 {[%emt 0:06:03]} 4. Bxc6 {[%emt 0:
00:00]} dxc6 {[%emt 0:00:12]} 5. d3 {[%emt 0:00:10]} Bg7 {[%emt 0:10:39]} 6.
Be3 {[%emt 0:09:00]} b6 {[%emt 0:00:21]} 7. Qd2 {[%emt 0:00:08]} e5 {[%emt 0:
00:00]} 8. f4 {[%emt 0:07:58]} Nf6 {[%emt 0:05:26]} 9. fxe5 {[%emt 0:03:53]}
Ng4 {[%emt 0:00:12]} 10. Bg5 {[%emt 0:02:06]} Qc7 {[%emt 0:00:52]} 11. Nf3 {
[%emt 0:00:33]} Be6 {[%emt 0:05:51]} 12. O-O {[%emt 0:04:00]} h6 {[%emt 0:00:
00]} 13. Bf4 {[%emt 0:04:15]} O-O-O {[%emt 0:01:25]} 14. a4 {[%emt 0:04:41]} a5
{[%emt 0:01:25]} 15. Ne2 {[%emt 0:03:42]} Kb7 {[%emt 0:21:10]} 16. b3 {[%emt 0:
00:00]} Nxe5 {[%emt 0:06:51]} 17. Nxe5 {[%emt 0:01:51]} Bxe5 {[%emt 0:00:03]}
18. Rae1 {[%emt 0:01:05]} Rde8 {[%emt 0:12:28]} 19. Rf2 {[%emt 0:05:04]} f5 {
[%emt 0:01:08]} 20. Bxe5 {[%emt 0:02:53]} Qxe5 {[%emt 0:00:02]} 21. Ng3 {
[%emt 0:03:08]} Bd7 {[%emt 0:03:57]} 22. Ref1 {[%emt 0:01:27]} fxe4 {[%emt 0:
00:00]} 23. Nxe4 {[%emt 0:00:54]} Bf5 {[%emt 0:04:51]} 24. Ng3 {[%emt 0:02:31]}
Bd7 {[%emt 0:01:27]} 25. Ne4 {[%emt 0:02:01]} Bf5 {[%emt 0:00:27]} 26. Ng3 {
[%emt 0:00:00]} Bd7 {[%emt 0:00:06]} 1/2-1/2